[Event "FIDE WCCC Open-12 2024"]
[Site "Montesilvano"]
[Date "2024.11.25"]
[Round "10.1"]
[White "Smirnov, Mark"]
[Black "Golis, Wiktor"]
[Result "1-0"]
[ECO "B15"]
[WhiteElo "2300"]
[BlackElo "2343"]
[Annotator "RC"]
[PlyCount "87"]
[EventDate "2024.11.18"]
[EventType "swiss"]
[EventCountry "ITA"]
[SourceTitle "playchess.com"]
[Source "ChessBase"]
[SourceQuality "1"]
[TimeControl "5400+30"]

1. e4 {[%emt 0:00:04]} c6 {[%emt 0:00:07]} 2. d4 {[%emt 0:00:13]} d5 {[%emt 0:00:05]} 3. Nc3 {[%emt 0:00:09]} dxe4 {[%emt 0:00:06]} 4. Nxe4 {[%emt 0:00:04]} Nf6 {[%emt 0:00:07]} 5. Nxf6+ {[%emt 0:00:05]} exf6 {[%emt 0:00:06]} 6. Be3 {[%emt 0:00:06]} Na6 {[%emt 0:07:17]} 7. a3 {[%emt 0:00:17]} Bd6 {[%emt 0:02:34]} 8. Bd3 {[%emt 0:02:10]} Nc7 {[%emt 0:08:43]} 9. c4 {[%emt 0:10:17]} O-O {[%emt 0:06:10]} 10. Qc2 {[%emt 0:12:58]} g6 {[%emt 0:11:03]} 11. Ne2 {[%emt 0:07:59]} Re8 {[%emt 0:06:18]} 12. O-O {[%emt 0:08:51]} f5 {[%emt 0:01:29]} 13. Qd2 {[%emt 0:01:06]} Be6 {[%emt 0:08:34]} 14. Bf4 {[%emt 0:03:12]} Bxf4 {[%emt 0:06:39]} 15. Qxf4 {[%emt 0:00:28]} Qd7 {[%emt 0:02:00]} 16. Rad1 {[%emt 0:04:56]} Rad8 {[%emt 0:04:27]} 17. Nc3 {[%emt 0:09:21]} f6 {[%emt 0:06:17]} 18. Be2 {[%emt 0:09:03]} Kg7 {[%emt 0:08:10]} 19. Qg3 {[%emt 0:05:34]} Qf7 {[%emt 0:05:59]} 20. Rd2 {[%emt 0:02:00]} Re7 {[%emt 0:01:40]} 21. b3 {[%emt 0:00:45]} Red7 {[%emt 0:00:18]} 22. Rfd1 {[%emt 0:04:02]} Qe7 {[%emt 0:02:18]} 23. Na4 {[%emt 0:04:38]} b6 {[%emt 0:04:01]} 24. Bf3 {[%emt 0:01:22]} Bf7 {[%emt 0:02:15]} 25. h4 {[%emt 0:04:10]} Ne6 {[%emt 0:02:57]} 26. d5 {[%emt 0:03:26]} f4 {[%emt 0:00:32]} 27. Qh3 {[%emt 0:04:24]} Nc7 {[%emt 0:00:14]} 28. b4 {[%emt 0:02:14]} cxd5 {[%emt 0:00:45]} 29. c5 {[%emt 0:00:13]} Nb5 {[%emt 0:03:07]} 30. cxb6 {[%emt 0:00:42]} axb6 {[%emt 0:00:21]} 31. Nxb6 {[%emt 0:00:36]} Rd6 {[%emt 0:00:00]} 32. Nxd5 {[%emt 0:00:33]} Qa7 {[%emt 0:00:43]} 33. Rd3 {[%emt 0:00:28]} Be6 {[%emt 0:01:03]} 34. Qh2 {[%emt 0:00:02]} Bxd5 {[%emt 0:00:32]} 35. Bxd5 {[%emt 0:00:38]} Nc7 {[%emt 0:00:29]} 36. Bc4 {[%emt 0:00:27]} Rxd3 {[%emt 0:00:28]} 37. Rxd3 {[%emt 0:00:03]} Rd4 {[%emt 0:00:35]} 38. Rxd4 {[%emt 0:00:48]} Qxd4 {[%emt 0:00:00]} 39. Bf1 {[%emt 0:00:11]} Nd5 {[%emt 0:00:38]} 40. Qh3 {[%emt 0:00:10]} Nc3 {[%emt 0:00:20]} 41. Qd3 {[%emt 0:00:37]} Qe5 {[%emt 0:00:29]} 42. b5 {[%emt 0:00:30]} Qc5 {[%emt 0:00:30]} 43. b6 {[%emt 0:01:13]} Na4 {[%emt 0:01:00]} 44. Qd7+ {[%emt 0:00:05]} 1-0

[Event "FIDE WCCC Open-12 2024"]
[Site "Montesilvano"]
[Date "2024.11.25"]
[Round "10.2"]
[White "Liu, Patrick"]
[Black "Lacan Rus, David"]
[Result "1/2-1/2"]
[ECO "B30"]
[WhiteElo "2192"]
[BlackElo "2274"]
[Annotator "RC"]
[PlyCount "92"]
[EventDate "2024.11.18"]
[EventType "swiss"]
[EventCountry "ITA"]
[SourceTitle "playchess.com"]
[Source "ChessBase"]
[SourceQuality "1"]
[TimeControl "5400+30"]

1. e4 {[%emt 0:00:02]} c5 {[%emt 0:00:12]} 2. Nf3 {[%emt 0:00:02]} Nc6 {[%emt 0:00:09]} 3. Bb5 {[%emt 0:00:05]} Nf6 {[%emt 0:00:05]} 4. Bxc6 {[%emt 0:00:09]} dxc6 {[%emt 0:00:07]} 5. d3 {[%emt 0:02:11]} Bg4 {[%emt 0:00:06]} 6. h3 {[%emt 0:01:08]} Bh5 {[%emt 0:00:22]} 7. Nbd2 {[%emt 0:01:03]} Nd7 {[%emt 0:00:20]} 8. b3 {[%emt 0:02:10]} e5 {[%emt 0:02:39]} 9. Bb2 {[%emt 0:01:05]} f6 {[%emt 0:00:08]} 10. Qe2 {[%emt 0:02:46]} Be7 {[%emt 0:00:45]} 11. Nf1 {[%emt 0:03:15]} Nf8 {[%emt 0:03:37]} 12. Ng3 {[%emt 0:14:17]} Bf7 {[%emt 0:00:07]} 13. Nf5 {[%emt 0:01:35]} Ne6 {[%emt 0:00:14]} 14. O-O {[%emt 0:01:59]} g6 {[%emt 0:07:56]} 15. Nh6 {[%emt 0:10:23]} Nf4 {[%emt 0:03:23]} 16. Qe3 {[%emt 0:01:16]} g5 {[%emt 0:06:29]} 17. Nxf7 {[%emt 0:03:09]} Kxf7 {[%emt 0:00:02]} 18. Kh2 {[%emt 0:02:55]} Qc8 {[%emt 0:10:02]} 19. c3 {[%emt 0:13:32]} Ng6 {[%emt 0:08:38]} 20. g3 {[%emt 0:08:20]} h5 {[%emt 0:04:55]} 21. Ng1 {[%emt 0:04:27]} h4 {[%emt 0:03:27]} 22. g4 {[%emt 0:03:26]} Qe6 {[%emt 0:01:27]} 23. Ne2 {[%emt 0:04:34]} a5 {[%emt 0:01:04]} 24. Qd2 {[%emt 0:04:46]} b5 {[%emt 0:02:47]} 25. c4 {[%emt 0:02:36]} a4 {[%emt 0:00:30]} 26. Nc3 {[%emt 0:01:37]} Rhd8 {[%emt 0:03:09]} 27. Qc2 {[%emt 0:01:55]} Nf4 {[%emt 0:03:48]} 28. Rad1 {[%emt 0:02:00]} Qd7 {[%emt 0:03:13]} 29. Bc1 {[%emt 0:02:54]} axb3 {[%emt 0:08:03]} 30. axb3 {[%emt 0:00:52]} Nxd3 {[%emt 0:01:26]} 31. cxb5 {[%emt 0:00:53]} cxb5 {[%emt 0:00:29]} 32. Nd5 {[%emt 0:01:02]} Nxc1 {[%emt 0:00:36]} 33. Rxc1 {[%emt 0:01:26]} Qb7 {[%emt 0:02:20]} 34. Nxe7 {[%emt 0:01:48]} Qxe7 {[%emt 0:00:07]} 35. Qxc5 {[%emt 0:00:08]} Qxc5 {[%emt 0:00:32]} 36. Rxc5 {[%emt 0:00:01]} b4 {[%emt 0:00:13]} 37. Rc4 {[%emt 0:02:07]} Rd4 {[%emt 0:00:22]} 38. Rfc1 {[%emt 0:01:02]} Ra3 {[%emt 0:02:15]} 39. Rc7+ {[%emt 0:00:31]} Ke6 {[%emt 0:00:45]} 40. R1c6+ {[%emt 0:00:30]} Rd6 {[%emt 0:00:06]} 41. Rc4 {[%emt 0:00:18]} Rxb3 {[%emt 0:01:11]} 42. Rb7 {[%emt 0:00:05]} Rb2 {[%emt 0:01:01]} 43. Rcc7 {[%emt 0:00:34]} Ra6 {[%emt 0:01:07]} 44. Kg2 {[%emt 0:00:32]} b3 {[%emt 0:04:43]} 45. Rc3 {[%emt 0:01:00]} Rb1 {[%emt 0:02:52]} 46. Rcxb3 {[%emt 0:00:14]} Ra8 {[%emt 0:15:41]} 1/2-1/2

[Event "FIDE WCCC Open-12 2024"]
[Site "Montesilvano"]
[Date "2024.11.25"]
[Round "10.3"]
[White "Radzimski, Antoni"]
[Black "Negrean, Andrei"]
[Result "1-0"]
[ECO "D35"]
[WhiteElo "2188"]
[BlackElo "2255"]
[Annotator "RC"]
[PlyCount "87"]
[EventDate "2024.11.18"]
[EventType "swiss"]
[EventCountry "ITA"]
[SourceTitle "playchess.com"]
[Source "ChessBase"]
[SourceQuality "1"]
[TimeControl "5400+30"]

1. d4 {[%emt 0:00:11]} Nf6 {[%emt 0:00:12]} 2. c4 {[%emt 0:00:05]} e6 {[%emt 0:00:15]} 3. Nc3 {[%emt 0:00:07]} d5 {[%emt 0:00:18]} 4. cxd5 {[%emt 0:01:33]} Nxd5 {[%emt 0:00:20]} 5. e4 {[%emt 0:00:17]} Nxc3 {[%emt 0:00:12]} 6. bxc3 {[%emt 0:00:22]} c5 {[%emt 0:00:09]} 7. Rb1 {[%emt 0:02:48]} Be7 {[%emt 0:00:27]} 8. Bb5+ {[%emt 0:05:53]} Nd7 {[%emt 0:07:03]} 9. Nf3 {[%emt 0:07:43]} O-O {[%emt 0:04:41]} 10. O-O {[%emt 0:04:16]} a6 {[%emt 0:08:00]} 11. Bd3 {[%emt 0:00:42]} b5 {[%emt 0:03:50]} 12. Be3 {[%emt 0:12:13]} cxd4 {[%emt 0:13:31]} 13. cxd4 {[%emt 0:01:36]} Bb7 {[%emt 0:00:45]} 14. Qe2 {[%emt 0:01:57]} h6 {[%emt 0:06:54]} 15. Rfc1 {[%emt 0:03:43]} Rc8 {[%emt 0:09:53]} 16. a4 {[%emt 0:05:36]} Rxc1+ {[%emt 0:07:27]} 17. Bxc1 {[%emt 0:01:29]} b4 {[%emt 0:01:35]} 18. Bxa6 {[%emt 0:01:08]} Bxa6 {[%emt 0:00:43]} 19. Qxa6 {[%emt 0:00:22]} Nf6 {[%emt 0:08:53]} 20. Qb7 {[%emt 0:06:40]} Re8 {[%emt 0:16:07]} 21. Ra1 {[%emt 0:08:34]} e5 {[%emt 0:04:59]} 22. Bb2 {[%emt 0:02:04]} exd4 {[%emt 0:00:11]} 23. Bxd4 {[%emt 0:06:31]} Bf8 {[%emt 0:00:43]} 24. e5 {[%emt 0:02:17]} Nd5 {[%emt 0:00:46]} 25. a5 {[%emt 0:03:52]} Re7 {[%emt 0:03:27]} 26. Qb5 {[%emt 0:00:39]} Nc3 {[%emt 0:01:35]} 27. Qf1 {[%emt 0:00:54]} Rd7 {[%emt 0:00:15]} 28. a6 {[%emt 0:01:22]} Qa8 {[%emt 0:00:37]} 29. a7 {[%emt 0:00:59]} Rc7 {[%emt 0:00:39]} 30. e6 {[%emt 0:03:18]} fxe6 {[%emt 0:00:23]} 31. Qa6 {[%emt 0:00:24]} Bc5 {[%emt 0:00:36]} 32. Qxe6+ {[%emt 0:00:08]} Kh8 {[%emt 0:00:27]} 33. Qxh6+ {[%emt 0:00:07]} Kg8 {[%emt 0:00:04]} 34. Qe6+ {[%emt 0:00:05]} Kh8 {[%emt 0:00:07]} 35. Ng5 {[%emt 0:03:08]} Bxd4 {[%emt 0:01:23]} 36. Qh3+ {[%emt 0:00:03]} Kg8 {[%emt 0:00:03]} 37. Qh7+ {[%emt 0:00:04]} Kf8 {[%emt 0:00:03]} 38. Qh8+ {[%emt 0:00:05]} Ke7 {[%emt 0:00:04]} 39. Qxa8 {[%emt 0:00:18]} Ne2+ {[%emt 0:00:03]} 40. Kf1 {[%emt 0:00:16]} Bxa1 {[%emt 0:00:15]} 41. Kxe2 {[%emt 0:00:26]} Be5 {[%emt 0:00:18]} 42. Qd5 {[%emt 0:00:22]} Rxa7 {[%emt 0:00:05]} 43. Qxe5+ {[%emt 0:00:09]} Kf8 {[%emt 0:00:14]} 44. Qb8+ {[%emt 0:00:02]} 1-0

[Event "FIDE WCCC Open-12 2024"]
[Site "Montesilvano"]
[Date "2024.11.25"]
[Round "10.4"]
[White "Aansh Nandan Nerurkar"]
[Black "Platonovs, Nikolajs"]
[Result "1-0"]
[ECO "B51"]
[WhiteElo "2247"]
[BlackElo "1969"]
[Annotator "RC"]
[PlyCount "125"]
[EventDate "2024.11.18"]
[EventType "swiss"]
[EventCountry "ITA"]
[SourceTitle "playchess.com"]
[Source "ChessBase"]
[SourceQuality "1"]
[TimeControl "5400+30"]

1. e4 {[%emt 0:00:02]} c5 {[%emt 0:00:03]} 2. Nf3 {[%emt 0:00:07]} d6 {[%emt 0:00:05]} 3. Bb5+ {[%emt 0:00:48]} Nd7 {[%emt 0:00:05]} 4. a4 {[%emt 0:00:09]} Ngf6 {[%emt 0:00:20]} 5. Nc3 {[%emt 0:00:18]} g6 {[%emt 0:00:51]} 6. a5 {[%emt 0:00:10]} Bg7 {[%emt 0:00:40]} 7. O-O {[%emt 0:00:09]} O-O {[%emt 0:00:11]} 8. d3 {[%emt 0:00:18]} a6 {[%emt 0:00:13]} 9. Bc4 {[%emt 0:00:20]} b5 {[%emt 0:00:16]} 10. axb6 {[%emt 0:00:10]} a5 {[%emt 0:00:19]} 11. Bg5 {[%emt 0:02:40]} Nxb6 {[%emt 0:01:15]} 12. Bb3 {[%emt 0:00:40]} Bd7 {[%emt 0:03:13]} 13. e5 {[%emt 0:06:14]} dxe5 {[%emt 0:04:03]} 14. Nxe5 {[%emt 0:03:11]} a4 {[%emt 0:01:10]} 15. Bc4 {[%emt 0:00:58]} Qc7 {[%emt 0:13:53]} 16. Re1 {[%emt 0:04:25]} e6 {[%emt 0:11:11]} 17. Qf3 {[%emt 0:09:11]} Nfd5 {[%emt 0:00:21]} 18. Bxd5 {[%emt 0:00:41]} exd5 {[%emt 0:00:27]} 19. Bf6 {[%emt 0:06:14]} Qd6 {[%emt 0:07:43]} 20. Nxd7 {[%emt 0:01:10]} Qxd7 {[%emt 0:00:11]} 21. g3 {[%emt 0:02:56]} Rfe8 {[%emt 0:02:11]} 22. Bxg7 {[%emt 0:01:27]} Kxg7 {[%emt 0:00:05]} 23. Qf4 {[%emt 0:01:54]} Rxe1+ {[%emt 0:18:49]} 24. Rxe1 {[%emt 0:00:42]} h5 {[%emt 0:09:17]} 25. Qe5+ {[%emt 0:03:04]} Kg8 {[%emt 0:00:50]} 26. Qf6 {[%emt 0:02:22]} d4 {[%emt 0:03:00]} 27. Ne4 {[%emt 0:04:29]} Nd5 {[%emt 0:00:09]} 28. Qg5 {[%emt 0:00:10]} Re8 {[%emt 0:02:59]} 29. Ra1 {[%emt 0:00:39]} Kg7 {[%emt 0:02:03]} 30. Nxc5 {[%emt 0:01:53]} Qc6 {[%emt 0:00:23]} 31. Nxa4 {[%emt 0:00:52]} Nb4 {[%emt 0:03:23]} 32. Qc5 {[%emt 0:08:21]} Qxc5 33. Nxc5 {[%emt 0:00:01]} Nxc2 {[%emt 0:00:32]} 34. Rc1 {[%emt 0:02:39]} Nb4 {[%emt 0:02:47]} 35. Kf1 {[%emt 0:01:41]} Nc6 {[%emt 0:04:05]} 36. Rc4 {[%emt 0:01:25]} Ne5 {[%emt 0:02:57]} 37. Rc1 {[%emt 0:05:52]} Nf3 {[%emt 0:01:28]} 38. h4 {[%emt 0:00:20]} Rb8 {[%emt 0:02:03]} 39. Ke2 {[%emt 0:00:30]} Ne5 {[%emt 0:00:25]} 40. Rc2 {[%emt 0:00:17]} Ng4 {[%emt 0:01:10]} 41. Ne4 {[%emt 0:03:43]} Re8 {[%emt 0:03:16]} 42. Kf1 {[%emt 0:01:48]} Rb8 {[%emt 0:00:29]} 43. Nd2 {[%emt 0:03:19]} Ne5 {[%emt 0:00:31]} 44. Ke2 {[%emt 0:00:01]} Re8 {[%emt 0:00:24]} 45. Nf3 {[%emt 0:00:13]} Ng4+ {[%emt 0:01:22]} 46. Kf1 {[%emt 0:00:20]} Rb8 {[%emt 0:00:32]} 47. Ke2 {[%emt 0:01:43]} Re8+ {[%emt 0:00:04]} 48. Kd1 {[%emt 0:00:07]} Rb8 {[%emt 0:00:45]} 49. Re2 {[%emt 0:00:46]} Rc8 {[%emt 0:00:32]} 50. Nd2 {[%emt 0:01:10]} Nf6 {[%emt 0:00:58]} 51. Nc4 {[%emt 0:00:17]} Rb8 {[%emt 0:00:25]} 52. Re7 {[%emt 0:00:39]} Ng4 {[%emt 0:01:19]} 53. f3 {[%emt 0:00:49]} Nh6 {[%emt 0:00:42]} 54. Re4 {[%emt 0:04:06]} Nf5 {[%emt 0:00:24]} 55. g4 {[%emt 0:00:10]} hxg4 {[%emt 0:00:07]} 56. Rxg4 {[%emt 0:00:50]} Ne3+ {[%emt 0:00:42]} 57. Nxe3 {[%emt 0:00:07]} dxe3 {[%emt 0:00:01]} 58. b4 {[%emt 0:00:27]} f5 {[%emt 0:00:18]} 59. Rc4 {[%emt 0:00:18]} Rf8 {[%emt 0:01:23]} 60. b5 {[%emt 0:03:56]} f4 {[%emt 0:00:33]} 61. b6 {[%emt 0:00:09]} Rb8 {[%emt 0:00:29]} 62. Rxf4 {[%emt 0:00:19]} Rxb6 {[%emt 0:00:08]} 63. Ke2 {[%emt 0:00:05]} 1-0

[Event "FIDE WCCC Open-12 2024"]
[Site "Montesilvano"]
[Date "2024.11.25"]
[Round "10.5"]
[White "Kuandykuly, Danis"]
[Black "Ambartsumian, Tyhran"]
[Result "1-0"]
[ECO "C54"]
[WhiteElo "2199"]
[BlackElo "2123"]
[Annotator "RC"]
[PlyCount "67"]
[EventDate "2024.11.18"]
[EventType "swiss"]
[EventCountry "ITA"]
[SourceTitle "playchess.com"]
[Source "ChessBase"]
[SourceQuality "1"]
[TimeControl "5400+30"]

1. e4 {[%emt 0:04:14]} e5 {[%emt 0:01:09]} 2. Nf3 {[%emt 0:00:16]} Nc6 {[%emt 0:00:07]} 3. Bc4 {[%emt 0:00:19]} Bc5 {[%emt 0:00:11]} 4. c3 {[%emt 0:00:20]} Nf6 {[%emt 0:00:04]} 5. d4 {[%emt 0:00:11]} exd4 {[%emt 0:00:06]} 6. b4 {[%emt 0:00:08]} Bb6 {[%emt 0:00:08]} 7. e5 {[%emt 0:00:09]} d5 {[%emt 0:00:13]} 8. exf6 {[%emt 0:00:06]} dxc4 {[%emt 0:00:04]} 9. Qe2+ {[%emt 0:00:12]} Be6 {[%emt 0:00:48]} 10. b5 {[%emt 0:00:11]} Nb4 {[%emt 0:00:08]} 11. fxg7 {[%emt 0:00:11]} Rg8 {[%emt 0:00:02]} 12. cxb4 {[%emt 0:00:09]} Qf6 {[%emt 0:00:05]} 13. O-O {[%emt 0:00:24]} Qxg7 {[%emt 0:11:24]} 14. g3 {[%emt 0:01:23]} O-O-O {[%emt 0:02:07]} 15. a4 {[%emt 0:00:15]} d3 {[%emt 0:13:17]} 16. Qb2 {[%emt 0:00:52]} Qg4 {[%emt 0:02:17]} 17. Qf6 {[%emt 0:00:18]} Rd5 {[%emt 0:36:58]} 18. a5 {[%emt 0:42:31]} Rf5 {[%emt 0:01:39]} 19. axb6 {[%emt 0:15:11]} Rxf6 {[%emt 0:07:36]} 20. bxa7 {[%emt 0:01:26]} Qxf3 {[%emt 0:00:26]} 21. Nd2 {[%emt 0:00:43]} Qd5 {[%emt 0:00:09]} 22. a8=Q+ {[%emt 0:00:48]} Kd7 {[%emt 0:00:04]} 23. Qxg8 {[%emt 0:01:12]} Bh3 {[%emt 0:00:15]} 24. f3 {[%emt 0:00:53]} Qd4+ {[%emt 0:00:12]} 25. Kh1 {[%emt 0:00:35]} Qxa1 {[%emt 0:07:57]} 26. Re1 {[%emt 0:01:03]} Be6 {[%emt 0:03:19]} 27. Ne4 {[%emt 0:01:40]} Rf5 {[%emt 0:00:41]} 28. Bd2 {[%emt 0:02:35]} Qb2 {[%emt 0:02:18]} 29. Bg5 {[%emt 0:03:28]} Rxg5 {[%emt 0:00:41]} 30. Qxg5 {[%emt 0:00:11]} Qh8 {[%emt 0:01:39]} 31. Nf6+ {[%emt 0:01:23]} Kc8 {[%emt 0:00:09]} 32. Ra1 {[%emt 0:00:15]} Kb8 {[%emt 0:00:05]} 33. b6 {[%emt 0:00:12]} Qd8 {[%emt 0:00:37]} 34. Ra8+ {[%emt 0:00:34]} 1-0

[Event "FIDE WCCC Open-12 2024"]
[Site "Montesilvano"]
[Date "2024.11.25"]
[Round "10.6"]
[White "Marchand, Calix"]
[Black "Luger, Sam"]
[Result "0-1"]
[ECO "B22"]
[WhiteElo "2027"]
[BlackElo "2094"]
[Annotator "NA RC"]
[PlyCount "34"]
[EventDate "2024.11.18"]
[EventType "swiss"]
[EventCountry "ITA"]
[SourceTitle "playchess.com"]
[Source "ChessBase"]
[SourceQuality "1"]
[TimeControl "5400+30"]

1. Nf3 {[%emt 0:00:04]} c5 {[%emt 0:00:57]} 2. e4 {[%emt 0:00:30]} Nc6 {[%emt 0:00:05]} 3. c3 {[%emt 0:00:42]} e5 {[%emt 0:00:06]} 4. Bb5 {[%emt 0:11:46]} a6 {[%emt 0:00:39]} 5. Ba4 {[%emt 0:01:51]} b5 {[%emt 0:00:50]} 6. Bc2 {[%emt 0:00:34]} d5 {[%emt 0:00:58]} 7. d4 {[%emt 0:05:30]} exd4 {[%emt 0:02:09]} 8. cxd4 {[%emt 0:01:29]} Bg4 {[%emt 0:08:55]} 9. dxc5 {[%emt 0:08:10]} dxe4 {[%emt 0:03:45]} 10. Bxe4 {[%emt 0:03:28]} Qxd1+ {[%emt 0:15:11]} 11. Kxd1 {[%emt 0:00:02]} O-O-O+ {[%emt 0:04:59]} 12. Kc2 {[%emt 0:19:12]} Nb4+ {[%emt 0:31:28]} 13. Kc3 {[%emt 0:01:05]} Bxc5 {[%emt 0:12:18]} 14. Ng5 {[%emt 0:15:36]} Nf6 {[%emt 0:02:12]} 15. Bc2 {[%emt 0:04:18]} Nfd5+ {[%emt 0:10:50]} 16. Kb3 {[%emt 0:00:01]} Nc6 {[%emt 0:00:25]} 17. a3 {[%emt 0:04:33]} Nd4+ {[%emt 0:00:10]} 0-1

[Event "FIDE WCCC Open-12 2024"]
[Site "Montesilvano"]
[Date "2024.11.25"]
[Round "10.7"]
[White "Guo, Ethan"]
[Black "Birmenko, Nikolay"]
[Result "1-0"]
[ECO "C54"]
[WhiteElo "2157"]
[BlackElo "2084"]
[Annotator "RC"]
[PlyCount "101"]
[EventDate "2024.11.18"]
[EventType "swiss"]
[EventCountry "ITA"]
[SourceTitle "playchess.com"]
[Source "ChessBase"]
[SourceQuality "1"]
[TimeControl "5400+30"]

1. e4 {[%emt 0:00:53]} e5 {[%emt 0:00:35]} 2. Nf3 {[%emt 0:00:11]} Nc6 {[%emt 0:00:46]} 3. Bc4 {[%emt 0:00:08]} Bc5 {[%emt 0:00:37]} 4. d3 {[%emt 0:00:08]} Nf6 {[%emt 0:00:31]} 5. Nbd2 {[%emt 0:00:32]} d6 {[%emt 0:02:15]} 6. c3 {[%emt 0:00:20]} a6 {[%emt 0:01:40]} 7. O-O {[%emt 0:00:44]} O-O {[%emt 0:02:15]} 8. Re1 {[%emt 0:00:27]} Ba7 {[%emt 0:01:13]} 9. Nf1 {[%emt 0:00:32]} Na5 {[%emt 0:03:36]} 10. Bb3 {[%emt 0:00:07]} Nxb3 {[%emt 0:01:12]} 11. axb3 {[%emt 0:00:07]} Re8 {[%emt 0:04:13]} 12. h3 {[%emt 0:02:08]} h6 {[%emt 0:02:11]} 13. Ng3 {[%emt 0:00:25]} d5 {[%emt 0:03:12]} 14. exd5 {[%emt 0:00:15]} Qxd5 {[%emt 0:02:23]} 15. Be3 {[%emt 0:01:04]} Bxe3 {[%emt 0:01:41]} 16. Rxe3 {[%emt 0:00:12]} b6 {[%emt 0:03:21]} 17. c4 {[%emt 0:02:34]} Qd6 {[%emt 0:02:38]} 18. Qe1 {[%emt 0:03:24]} Nd7 {[%emt 0:05:00]} 19. d4 {[%emt 0:05:47]} f6 {[%emt 0:01:56]} 20. Rd1 {[%emt 0:04:53]} Qe6 {[%emt 0:03:25]} 21. Nh4 {[%emt 0:14:46]} Bb7 {[%emt 0:05:52]} 22. Ngf5 {[%emt 0:03:29]} Kh7 {[%emt 0:02:00]} 23. Rg3 {[%emt 0:03:09]} g5 {[%emt 0:04:16]} 24. d5 {[%emt 0:01:11]} Qf7 {[%emt 0:00:53]} 25. d6 {[%emt 0:14:48]} Nc5 {[%emt 0:09:18]} 26. dxc7 {[%emt 0:01:36]} Qxc7 {[%emt 0:03:07]} 27. Qe2 {[%emt 0:03:14]} Qf7 {[%emt 0:12:32]} 28. Nd6 {[%emt 0:01:09]} Qe6 {[%emt 0:01:34]} 29. Nhf5 {[%emt 0:11:51]} Rg8 {[%emt 0:02:31]} 30. b4 {[%emt 0:01:59]} Ne4 {[%emt 0:02:42]} 31. Nxe4 {[%emt 0:02:18]} Qxf5 {[%emt 0:01:05]} 32. Nd6 {[%emt 0:00:19]} Qd7 {[%emt 0:00:30]} 33. Qc2+ {[%emt 0:00:55]} Kh8 {[%emt 0:01:24]} 34. Rgd3 {[%emt 0:02:43]} Ra7 {[%emt 0:08:31]} 35. Nxb7 {[%emt 0:01:15]} Qxb7 {[%emt 0:00:09]} 36. Rd6 {[%emt 0:03:01]} Qg7 {[%emt 0:07:26]} 37. Qf5 {[%emt 0:01:10]} Rf8 {[%emt 0:00:00]} 38. Rxb6 {[%emt 0:01:30]} Qe7 {[%emt 0:00:00]} 39. c5 {[%emt 0:01:11]} Kg7 {[%emt 0:00:00]} 40. Re6 {[%emt 0:01:34]} Qc7 {[%emt 0:00:00]} 41. Rdd6 {[%emt 0:00:51]} Qc8 {[%emt 0:00:00]} 42. h4 {[%emt 0:01:23]} gxh4 {[%emt 0:00:27]} 43. Qg4+ {[%emt 0:00:36]} Kh7 {[%emt 0:00:19]} 44. Qe4+ {[%emt 0:00:20]} Kg7 {[%emt 0:00:16]} 45. Qxh4 {[%emt 0:00:26]} Raf7 {[%emt 0:00:15]} 46. Rxe5 {[%emt 0:01:35]} Re8 {[%emt 0:00:29]} 47. Rxe8 {[%emt 0:00:59]} Qxe8 {[%emt 0:00:04]} 48. Qg4+ {[%emt 0:00:47]} Kh8 {[%emt 0:00:11]} 49. Qe6 {[%emt 0:01:09]} Qf8 {[%emt 0:00:14]} 50. c6 {[%emt 0:01:09]} Kg7 {[%emt 0:00:16]} 51. Rd7 {[%emt 0:00:43]} 1-0